Workbook

Sheet Лист1
I1: К постановлению Администрации Североуральского городского округа от .12.2014г. №
A2: Приложение № 2 к муниципальной программе Североуральского городского округа «Развитие жилищно-коммунального хозяйства и транспортного обслуживания населения, повышение энергетической эффективности и охрана окружающей среды в Североуральском городском округе» на 2014-2020 годы
A3: План мероприятий
A4: по выполнению муниципальной программы Североуральского городского округа
A5: «Развитие жилищно-коммунального хозяйства и транспортного обслуживания населения,
A6: повышение энергетической эффективности и охрана окружающей среды в Североуральском городском округе» на 2014-2020 годы
A8: № строки | B8: Наименование мероприятия/ Источники расходов на финансирование | C8: Объем расходов на выполнение мероприятия за счет всех источников ресурсного обеспечения, тыс. руб. | K8: Номер строки целевых показателей, на достижение которых направлены мероприятия
C9: Всего | D9: первый год | E9: второй год | F9: третий год | G9: четвертый год | H9: пятый год | I9: шестой год | J9: седьмой год
B10: ВСЕГО по муниципальной программе, в том числе: | C10: =SUM(C11:C13) -> 909792 | D10: =SUM(D11:D13) -> 284056.7 | E10: =SUM(E11:E13) -> 238081.8 | F10: 56041.5 | G10: 82903 | H10: 82903 | I10: 82903 | J10: 82903 | K10: Х
B11: местный бюджет | C11: =SUM(D11:J11) -> 573775.2 | D11: =SUM(D15+D19) -> 92792.8 | E11: =SUM(E15+E19) -> 93663.9 | F11: 55974.5 | G11: 82836 | H11: 82836 | I11: 82836 | J11: 82836
B12: областной бюджет | C12: =SUM(D12:J12) -> 223414.7 | D12: =SUM(D16+D20) -> 109445.9 | E12: =SUM(E16+E20) -> 113633.8 | F12: 67 | G12: 67 | H12: 67 | I12: 67 | J12: 67
B13: федеральный бюджет | C13: =SUM(D13:J13) -> 112602.1 | D13: =SUM(D21+D17) -> 81818 | E13: =SUM(E21+E17) -> 30784.1 | F13: 0 | G13: 0 | H13: 0 | I13: 0 | J13: 0
B14: Капитальные вложения | C14: =SUM(C15:C17) -> 570944.1 | D14: =SUM(D15:D17) -> 230323.9 | E14: =SUM(E15:E17) -> 191046.7 | F14: 8425.5 | G14: 35287 | H14: 35287 | I14: 35287 | J14: 35287 | K14: Х
B15: местный бюджет | C15: =SUM(D15:J15) -> 239147.1 | D15: =D29+D92+D137+D160+D186+D220+D259+D278 -> 42877.8 | E15: 46695.8 | F15: 8425.5 | G15: 35287 | H15: 35287 | I15: 35287 | J15: 35287
B16: областной бюджет | C16: =SUM(D16:J16) -> 219194.9 | D16: =D93+D161+D30 -> 105628.1 | E16: =E93+E161 -> 113566.8 | F16: 0 | G16: 0 | H16: 0 | I16: 0 | J16: 0
B17: федеральный бюджет | C17: =SUM(D17:J17) -> 112602.1 | D17: =D94+D162 -> 81818 | E17: 30784.1 | F17: 0 | G17: 0 | H17: 0 | I17: 0 | J17: 0
B18: Прочие нужды | C18: =SUM(C19:C20) -> 338847.9 | D18: =SUM(D19:D20) -> 53732.8 | E18: =SUM(E19:E20) -> 47035.1 | F18: 47616 | G18: 47616 | H18: 47616 | I18: 47616 | J18: 47616 | K18: Х
B19: местный бюджет | C19: =SUM(D19:J19) -> 334628.1 | D19: =D44+D111+D146+D178+D229+D268+D288+D197 -> 49915 | E19: 46968.1 | F19: 47549 | G19: 47549 | H19: 47549 | I19: 47549 | J19: 47549
B20: областной бюджет | C20: =SUM(D20:J20) -> 4219.8 | D20: =SUM(D112+D287) -> 3817.8 | E20: 67 | F20: 67 | G20: 67 | H20: 67 | I20: 67 | J20: 67
B21: федеральный бюджет | C21: =SUM(D21:J21) -> 0 | D21: 0 | E21: =E112 -> 0 | F21: 0 | G21: 0 | H21: 0 | I21: 0 | J21: 0
A22: Подпрограмма 1: Комплексное благоустройство территории Североуральского городского округа
B23: Всего по подпрограмме 1, | C23: =SUM(C25+C26) -> 181974 | D23: =SUM(D25+D26) -> 25725.3 | E23: =SUM(E25) -> 22806.2 | F23: 26688.5 | G23: 26688.5 | H23: 26688.5 | I23: 26688.5 | J23: 26688.5 | K23: Х
B24: в том числе:
B25: местный бюджет | C25: =SUM(D25:J25) -> 180759.3 | D25: =SUM(D29+D44) -> 24510.6 | E25: =SUM(E29+E44) -> 22806.2 | F25: 26688.5 | G25: 26688.5 | H25: 26688.5 | I25: 26688.5 | J25: 26688.5
B26: областной бюджет | C26: =SUM(D26:J26) -> 1214.7 | D26: =SUM(D30) -> 1214.7 | E26: =SUM(E30) -> 0 | F26: 0 | G26: 0 | H26: 0 | I26: 0 | J26: 0
A27: 1. Капитальные вложения
B28: Всего по направлению «Капитальные вложения» всего, в том числе | C28: =SUM(D28:J28) -> 37784.2 | D28: =SUM(D29+D30) -> 3536.5 | E28: =SUM(E29) -> 2120.2 | F28: 6425.5 | G28: 6425.5 | H28: 6425.5 | I28: 6425.5 | J28: 6425.5 | K28: Х
B29: местный бюджет | C29: =SUM(D29:J29) -> 36569.5 | D29: =SUM(D40) -> 2321.8 | E29: =SUM(E40) -> 2120.2 | F29: 6425.5 | G29: 6425.5 | H29: 6425.5 | I29: 6425.5 | J29: 6425.5
B30: областной бюджет | C30: =SUM(D30:J30) -> 1214.7 | D30: =SUM(D37) -> 1214.7 | E30: =SUM(E37) -> 0 | F30: 0 | G30: 0 | H30: 0 | I30: 0 | J30: 0
A31: 1.1. Бюджетные инвестиции в объекты капитального строительства
B32: Бюджетные инвестиции в объекты капитального строительства всего, в том числе | C32: 0 | D32: 0 | E32: 0 | F32: 0 | G32: 0 | H32: 0 | I32: 0 | J32: 0 | K32: Х
B33: местный бюджет | C33: 0 | D33: 0 | E33: 0 | F33: 0 | G33: 0 | H33: 0 | I33: 0 | J33: 0
A34: 1.2. Иные капитальные вложения
B35: Всего | C35: =SUM(D35:J35) -> 37784.2 | D35: =SUM(D36:D37) -> 3536.5 | E35: =SUM(E36:E37) -> 2120.2 | F35: 6425.5 | G35: 6425.5 | H35: 6425.5 | I35: 6425.5 | J35: 6425.5 | K35: Х
B36: местный бюджет | C36: =SUM(D36:J36) -> 36569.5 | D36: =SUM(D40) -> 2321.8 | E36: =SUM(E40) -> 2120.2 | F36: 6425.5 | G36: 6425.5 | H36: 6425.5 | I36: 6425.5 | J36: 6425.5
B37: областной бюджет | C37: =SUM(D37:J37) -> 1214.7 | D37: =SUM(D41) -> 1214.7 | E37: =SUM(E41) -> 0 | F37: 0 | G37: 0 | H37: 0 | I37: 0 | J37: 0
A38: Мероприятие 1 Благоустройство дворовых территорий Североуральского городского округа
B39: Всего, из них | C39: =SUM(D39:J39) -> 37784.2 | D39: =D40+D41 -> 3536.5 | E39: =SUM(E40) -> 2120.2 | F39: 6425.5 | G39: 6425.5 | H39: 6425.5 | I39: 6425.5 | J39: 6425.5 | K39: 4
B40: местный бюджет | C40: =SUM(D40:J40) -> 36569.5 | D40: 2321.8 | E40: 2120.2 | F40: 6425.5 | G40: =SUM(F40) -> 6425.5 | H40: =SUM(G40) -> 6425.5 | I40: =SUM(H40) -> 6425.5 | J40: =SUM(I40) -> 6425.5
B41: областной бюджет | C41: =D41+E41+F41+G41+H41+I41+J41 -> 1214.7 | D41: 1214.7 | E41: 0 | F41: 0 | G41: 0 | H41: 0 | I41: 0 | J41: 0
A42: 3. Прочие нужды
B43: Всего по направлению «Прочие нужды», всего, в том числе: | C43: =SUM(D43:J43) -> 144189.8 | D43: =SUM(D44) -> 22188.8 | E43: =SUM(E44) -> 20686 | F43: 20263 | G43: 20263 | H43: 20263 | I43: 20263 | J43: 20263 | K43: Х
B44: местный бюджет | C44: =SUM(D44:J44) -> 144189.8 | D44: =SUM(D51+D54+D57+D60+D47) -> 22188.8 | E44: =SUM(E51+E54+E57+E60+E47) -> 20686 | F44: 20263 | G44: 20263 | H44: 20263 | I44: 20263 | J44: 20263
A45: Мероприятие 1 Благоустройство дворовых территорий Североуральского городского округа
B46: Всего, из них | C46: =SUM(D46:J46) -> 310.9 | D46: =D47+D48 -> 310.9 | E46: =SUM(E47) -> 0 | F46: 0 | G46: 0 | H46: 0 | I46: 0 | J46: 0 | K46: 4
B47: местный бюджет | C47: =SUM(D47:J47) -> 310.9 | D47: 310.9 | E47: 0 | F47: 0 | G47: =SUM(F47) -> 0 | H47: =SUM(G47) -> 0 | I47: =SUM(H47) -> 0 | J47: =SUM(I47) -> 0
B48: областной бюджет | C48: =D48+E48+F48+G48+H48+I48+J48 -> 0 | D48: 0 | E48: 0 | F48: 0 | G48: 0 | H48: 0 | I48: 0 | J48: 0
A49: Мероприятие 2 - Уличное освещение
B50: Всего, из них | C50: =SUM(D50:J50) -> 90600 | D50: =SUM(D51) -> 12001 | E50: 13000 | F50: 13119.8 | G50: 13119.8 | H50: 13119.8 | I50: 13119.8 | J50: 13119.8 | K50: 7
B51: местный бюджет | C51: =SUM(D51:J51) -> 90600 | D51: 12001 | E51: 13000 | F51: 13119.8 | G51: =SUM(F51) -> 13119.8 | H51: =SUM(G51) -> 13119.8 | I51: =SUM(H51) -> 13119.8 | J51: =SUM(I51) -> 13119.8
A52: Мероприятие 3 - Озеленение (цветники, валка сухих деревьев)
B53: Всего, из них | C53: =SUM(D53:J53) -> 15743.3 | D53: =SUM(D54) -> 2890.9 | E53: 2056.4 | F53: 2159.2 | G53: 2159.2 | H53: 2159.2 | I53: 2159.2 | J53: 2159.2 | K53: 9
B54: местный бюджет | C54: =SUM(D54:J54) -> 15743.3 | D54: 2890.9 | E54: 2056.4 | F54: 2159.2 | G54: =SUM(F54) -> 2159.2 | H54: =SUM(G54) -> 2159.2 | I54: =SUM(H54) -> 2159.2 | J54: =SUM(I54) -> 2159.2
A55: Мероприятие 4 - Организация и содержание мест захоронения
B56: Всего, из них | C56: =SUM(D56:J56) -> 15855.4 | D56: =SUM(D57) -> 2263.1 | E56: 2594.8 | F56: 2199.5 | G56: 2199.5 | H56: 2199.5 | I56: 2199.5 | J56: 2199.5 | K56: 14
B57: местный бюджет | C57: =SUM(D57:J57) -> 15855.4 | D57: 2263.1 | E57: 2594.8 | F57: 2199.5 | G57: =SUM(F57) -> 2199.5 | H57: =SUM(G57) -> 2199.5 | I57: =SUM(H57) -> 2199.5 | J57: =SUM(I57) -> 2199.5
A58: Мероприятие 5 - Прочие мероприятия по благоустройству
B59: Всего, в том числе: | C59: =SUM(D59:J59) -> 21680.2 | D59: =SUM(D60) -> 4722.9 | E59: 3034.8 | F59: =SUM(F60) -> 2784.5 | G59: 2784.5 | H59: 2784.5 | I59: 2784.5 | J59: 2784.5 | K59: 5,11,12,13,15
B60: местный бюджет | C60: =SUM(D60:J60) -> 21680.2 | D60: =SUM(D63+D66+D69+D72+D75+D81+D78+D84) -> 4722.9 | E60: =SUM(E63+E66+E69+E72+E75+E81+E78+E84) -> 3034.8 | F60: 2784.5 | G60: 2784.5 | H60: 2784.5 | I60: 2784.5 | J60: 2784.5
A61: - Содержание памятников
B62: Всего: | C62: =SUM(C63) -> 1691.7 | D62: 369.2 | E62: 220 | F62: 220.5 | G62: 220.5 | H62: 220.5 | I62: 220.5 | J62: 220.5 | K62: 15
B63: местный бюджет | C63: =SUM(D63:J63) -> 1691.7 | D63: 369.2 | E63: 220 | F63: 220.5 | G63: 220.5 | H63: =SUM(G63) -> 220.5 | I63: =SUM(H63) -> 220.5 | J63: =SUM(I63) -> 220.5
A64: - Проведение комплекса профилактических работ по уходу за объектами благоустройства
B65: Всего: | C65: =SUM(C66) -> 1295.7 | D65: =SUM(D66) -> 1098.7 | E65: =SUM(E66) -> 31.5 | F65: 33.1 | G65: 33.1 | H65: 33.1 | I65: 33.1 | J65: 33.1 | K65: 5
B66: местный бюджет | C66: =SUM(D66:J66) -> 1295.7 | D66: 1098.7 | E66: 31.5 | F66: 33.1 | G66: 33.1 | H66: =SUM(G66) -> 33.1 | I66: =SUM(H66) -> 33.1 | J66: =SUM(I66) -> 33.1
A67: - Регулирование численности безнадзорных животных
B68: Всего: | C68: =SUM(C69) -> 3781.5 | D68: =SUM(D69) -> 500 | E68: =SUM(E69) -> 525 | F68: 551.3 | G68: 551.3 | H68: 551.3 | I68: 551.3 | J68: 551.3 | K68: 11
B69: местный бюджет | C69: =SUM(D69:J69) -> 3781.5 | D69: 500 | E69: 525 | F69: 551.3 | G69: 551.3 | H69: =SUM(G69) -> 551.3 | I69: =SUM(H69) -> 551.3 | J69: =SUM(I69) -> 551.3
A70: - Содержание биоямы (скотомогильник)
B71: Всего: | C71: =SUM(C72) -> 575.6 | D71: =SUM(D72) -> 116.1 | E71: =SUM(E72) -> 73.5 | F71: 77.2 | G71: 77.2 | H71: 77.2 | I71: 77.2 | J71: 77.2 | K71: 13
B72: местный бюджет | C72: =SUM(D72:J72) -> 575.6 | D72: 116.1 | E72: 73.5 | F72: 77.2 | G72: 77.2 | H72: =SUM(G72) -> 77.2 | I72: =SUM(H72) -> 77.2 | J72: =SUM(I72) -> 77.2
A73: - Обустройство новогодних городков
B74: Всего: | C74: =SUM(C75) -> 13111.8 | D74: =SUM(D75) -> 1685.5 | E74: =SUM(E75) -> 2134.8 | F74: 1858.3 | G74: 1858.3 | H74: 1858.3 | I74: 1858.3 | J74: 1858.3 | K74: 5
B75: местный бюджет | C75: =SUM(D75:J75) -> 13111.8 | D75: 1685.5 | E75: 2134.8 | F75: 1858.3 | G75: 1858.3 | H75: =SUM(G75) -> 1858.3 | I75: =SUM(H75) -> 1858.3 | J75: =SUM(I75) -> 1858.3
A76: - Приобретение декоративного освещения для улиц города Североуральска
B77: Всего: | C77: =SUM(C78) -> 773.4 | D77: =SUM(D78) -> 773.4 | E77: =SUM(E78) -> 0 | F77: 0 | G77: 0 | H77: 0 | I77: 0 | J77: 0 | K77: 5
B78: местный бюджет | C78: =SUM(D78:J78) -> 773.4 | D78: 773.4 | E78: 0 | F78: 0 | G78: 0 | H78: =SUM(G78) -> 0 | I78: =SUM(H78) -> 0 | J78: =SUM(I78) -> 0
A79: - Акарицидная обработка общественных мест
B80: Всего: | C80: =SUM(C81) -> 362.5 | D80: =SUM(D81) -> 92 | E80: =SUM(E81) -> 50 | F80: 44.1 | G80: 44.1 | H80: 44.1 | I80: 44.1 | J80: 44.1 | K80: 12
B81: местный бюджет | C81: =SUM(D81:J81) -> 362.5 | D81: 92 | E81: 50 | F81: 44.1 | G81: 44.1 | H81: =SUM(G81) -> 44.1 | I81: =SUM(H81) -> 44.1 | J81: =SUM(I81) -> 44.1
A82: - Приобретение грунта плодородного (земли садовой)
B83: Всего: | C83: =SUM(C84) -> 88 | D83: =SUM(D84) -> 88 | E83: =SUM(E84) -> 0 | F83: 0 | G83: 0 | H83: 0 | I83: 0 | J83: 0 | K83: 9
B84: местный бюджет | C84: =SUM(D84:J84) -> 88 | D84: 88 | E84: 0 | F84: 0 | G84: 0 | H84: =SUM(G84) -> 0 | I84: =SUM(H84) -> 0 | J84: =SUM(I84) -> 0
A85: Подпрограмма 2: Муниципальная программа по энергосбережению и повышению энергетической эффективности объектов Североуральского городского округа
B86: Всего по подпрограмме 2, в том числе | C86: =SUM(D86:J86) -> 38312 | D86: =SUM(D87:D89) -> 9165.5 | E86: =SUM(E87:E89) -> 6467.5 | F86: 4535.8 | G86: 4535.8 | H86: 4535.8 | I86: 4535.8 | J86: 4535.8 | K86: Х
B87: местный бюджет | C87: =SUM(D87:J87) -> 31967.6 | D87: =SUM(D92+D111) -> 2821.1 | E87: =SUM(E92+E111) -> 6467.5 | F87: =F92+F111 -> 4535.8 | G87: =SUM(G92+G111) -> 4535.8 | H87: =SUM(H92+H111) -> 4535.8 | I87: =SUM(I92+I111) -> 4535.8 | J87: =SUM(J92+J111) -> 4535.8
B88: областной бюджет | C88: =SUM(D88:J88) -> 6344.4 | D88: =SUM(D93+D112) -> 6344.4 | E88: =SUM(E93+E112) -> 0 | F88: 0 | G88: 0 | H88: 0 | I88: 0 | J88: 0
B89: федеральный бюджет | C89: =SUM(D89:J89) -> 0 | D89: 0 | E89: =SUM(E94+E112) -> 0 | F89: 0 | G89: 0 | H89: 0 | I89: 0 | J89: 0
A90: 1. Капитальные вложения
B91: Всего по направлению «Капитальные вложения», всего, в том числе | C91: =SUM(C92:C94) -> 17037.4 | D91: =SUM(D92:D94) -> 3037.4 | E91: =SUM(E92:E94) -> 4000 | F91: 2000 | G91: 2000 | H91: 2000 | I91: 2000 | J91: 2000 | K91: Х
B92: местный бюджет | C92: =SUM(D92:J92) -> 14281 | D92: =SUM(D101) -> 281 | E92: =SUM(E101) -> 4000 | F92: 2000 | G92: 2000 | H92: 2000 | I92: 2000 | J92: 2000
B93: областной бюджет | C93: =SUM(D93:J93) -> 2756.4 | D93: =SUM(D102) -> 2756.4 | E93: =SUM(E102) -> 0 | F93: 0 | G93: 0 | H93: 0 | I93: 0 | J93: 0
B94: федеральный бюджет | C94: =SUM(D94:J94) -> 0 | D94: =SUM(D103) -> 0 | E94: =SUM(E103) -> 0 | F94: 0 | G94: 0 | H94: 0 | I94: 0 | J94: 0
A95: 1.1. Бюджетные инвестиции в объекты капитального строительства
B96: Бюджетные инвестиции в объекты капитального строительства всего, в том числе | C96: 0 | D96: 0 | E96: 0 | F96: 0 | G96: 0 | H96: 0 | I96: 0 | J96: 0 | K96: Х
B97: местный бюджет | C97: 0 | D97: 0 | E97: 0 | F97: 0 | G97: 0 | H97: 0 | I97: 0 | J97: 0
B98: областной бюджет
A99: 1.2. Иные капитальные вложения
B100: Всего, в том числе | C100: =SUM(C101:C103) -> 17037.4 | D100: =SUM(D101:D103) -> 3037.4 | E100: =SUM(E101:E103) -> 4000 | F100: 2000 | G100: 2000 | H100: 2000 | I100: 2000 | J100: 2000 | K100: Х
B101: местный бюджет | C101: =SUM(D101:J101) -> 14281 | D101: =SUM(D106) -> 281 | E101: =SUM(E106) -> 4000 | F101: 2000 | G101: 2000 | H101: 2000 | I101: 2000 | J101: 2000
B102: областной бюджет | C102: =SUM(D102:J102) -> 2756.4 | D102: =SUM(D107) -> 2756.4 | E102: =SUM(E107) -> 0 | F102: 0 | G102: 0 | H102: 0 | I102: 0 | J102: 0
B103: федеральный бюджет | C103: =SUM(D103:J103) -> 0 | D103: =SUM(D108) -> 0 | E103: =SUM(E108) -> 0 | F103: 0 | G103: 0 | H103: 0 | I103: 0 | J103: 0
A104: Мероприятие 6- Реконструкция, модернизация водопроводных сетей, сетей системы водоотведения с заменой (без замены) оборудования с более высоким КПД, установка регулируемого привода, реконструкция тепловых сетей, в том числе тепловых пунктов, котельных
B105: Всего, из них | C105: =SUM(C106:C108) -> 17037.4 | D105: =SUM(D106:D108) -> 3037.4 | E105: =SUM(E106:E108) -> 4000 | F105: 2000 | G105: 2000 | H105: 2000 | I105: 2000 | J105: 2000 | K105: 27
B106: местный бюджет | C106: =SUM(D106:J106) -> 14281 | D106: 281 | E106: 4000 | F106: 2000 | G106: =SUM(F106) -> 2000 | H106: 2000 | I106: 2000 | J106: 2000
B107: областной бюджет | C107: =SUM(D107:J107) -> 2756.4 | D107: 2756.4 | E107: 0 | F107: =SUM(E107*1.05) -> 0 | G107: 0 | H107: 0 | I107: 0 | J107: 0
B108: федеральный бюджет | C108: =SUM(D108:J108) -> 0 | D108: 0 | E108: 0 | F108: 0 | G108: =SUM(F108) -> 0 | H108: =SUM(G108) -> 0 | I108: =SUM(H108) -> 0 | J108: =SUM(I108) -> 0
A109: 3. Прочие нужды
B110: Всего по направлению «Прочие нужды», всего, в том числе: | C110: =SUM(D110:J110) -> 21274.6 | D110: =SUM(D111:D112) -> 6128.1 | E110: =SUM(E111:E112) -> 2467.5 | F110: 2535.8 | G110: 2535.8 | H110: 2535.8 | I110: 2535.8 | J110: 2535.8 | K110: Х
B111: местный бюджет | C111: =SUM(D111:J111) -> 17686.6 | D111: =SUM(D115+D124+D128+D131) -> 2540.1 | E111: =SUM(E115+E124+E128+E131) -> 2467.5 | F111: 2535.8 | G111: 2535.8 | H111: 2535.8 | I111: 2535.8 | J111: 2535.8
B112: областной бюджет | C112: =SUM(D112:J112) -> 3588 | D112: =SUM(D125+D116) -> 3588 | E112: =SUM(E125+E116) -> 0 | F112: 0 | G112: 0 | H112: 0 | I112: 0 | J112: 0
A113: Мероприятие 7 - Оснащение зданий (строений, сооружений), находящихся в муниципальной собственности, многоквартирных жилых домов, жилых помещений, квартир приборами учета используемых энергетических ресурсов, в том числе разработка проектно-сметной документации
B114: всего, в том числе: | C114: =SUM(D114:J114) -> 6794 | D114: =SUM(D115:D116) -> 4200 | E114: 415 | F114: 435.8 | G114: 435.8 | H114: 435.8 | I114: 435.8 | J114: 435.8 | K114: 19,21,22,23,24
B115: местный бюджет | C115: =SUM(D115:J115) -> 3794 | D115: =SUM(D120) -> 1200 | E115: =SUM(E120) -> 415 | F115: 435.8 | G115: 435.8 | H115: 435.8 | I115: 435.8 | J115: 435.8
B116: областной бюджет | C116: =SUM(D116:J116) -> 3000 | D116: =SUM(D121) -> 3000 | E116: =SUM(E117) -> 0 | F116: 0 | G116: 0 | H116: 0 | I116: 0 | J116: 0
B117: федеральный бюджет | C117: =SUM(D117:J117) -> 0 | D117: 0 | E117: 0 | F117: 0 | G117: =SUM(F117) -> 0 | H117: =SUM(G117) -> 0 | I117: =SUM(H117) -> 0 | J117: =SUM(I117) -> 0
A118: - Оснащение жилых домов (субсидии)
B119: Всего: | C119: =SUM(C120:C121) -> 6794 | D119: =SUM(D120:D121) -> 4200 | E119: =SUM(E120) -> 415 | F119: 435.8 | G119: 435.8 | H119: 435.8 | I119: 435.8 | J119: 435.8 | K119: 19,21,22,23,24
B120: местный бюджет | C120: =SUM(D120:J120) -> 3794 | D120: 1200 | E120: 415 | F120: 435.8 | G120: =SUM(F120) -> 435.8 | H120: =SUM(G120) -> 435.8 | I120: =SUM(H120) -> 435.8 | J120: =SUM(I120) -> 435.8
B121: областной бюджет | C121: =SUM(D121:J121) -> 3000 | D121: 3000 | E121: 0 | F121: 0 | G121: 0 | H121: 0 | I121: 0 | J121: 0
A122: Мероприятие 9 - Закупка и установка осветительного оборудования с заменой неэффективного на энергосберегающее, в том числе замена ламп накаливания на энергосберегающие, модернизация сетей уличного освещения, проектно-сметные работы, экспертиза проектно-сметной документации
B123: всего, из них: | C123: =SUM(C124:C125) -> 14048.1 | D123: =SUM(D124:D125) -> 1548.1 | E123: =SUM(E124:E125) -> 2000 | F123: 2100 | G123: 2100 | H123: 2100 | I123: 2100 | J123: 2100 | K123: 26
B124: местный бюджет | C124: =SUM(D124:J124) -> 13460.1 | D124: 960.1 | E124: 2000 | F124: 2100 | G124: =SUM(F124) -> 2100 | H124: 2100 | I124: 2100 | J124: 2100
B125: областной бюджет | C125: =SUM(D125:J125) -> 588 | D125: 588 | E125: 0 | F125: 0 | G125: 0 | H125: 0 | I125: 0 | J125: 0
A126: Мероприятие 10 - Разработка схемы водоснабжения Североуральского городского округа
B127: всего, из них: | C127: =SUM(D127:J127) -> 380 | D127: =SUM(D128) -> 380 | E127: =SUM(E128) -> 0 | F127: 0 | G127: 0 | H127: 0 | I127: 0 | J127: 0 | K127: 28
B128: местный бюджет | C128: =SUM(D128:J128) -> 380 | D128: 380 | E128: 0 | F128: 0 | G128: =SUM(F128) -> 0 | H128: =SUM(G128) -> 0 | I128: =SUM(H128) -> 0 | J128: =SUM(I128) -> 0
A129: Мероприятие 11 - Прочие мероприятия (оформление актов выбора трассы под строительство водопроводов, сетей уличного освещения, газопроводов и т.п.)
B130: всего, из них: | C130: =SUM(D130:J130) -> 52.5 | D130: =SUM(D131) -> 0 | E130: =SUM(E131) -> 52.5 | F130: 0 | G130: 0 | H130: 0 | I130: 0 | J130: 0 | K130: 29
B131: местный бюджет | C131: =SUM(D131:J131) -> 52.5 | D131: 0 | E131: 52.5 | F131: 0 | G131: =SUM(F131) -> 0 | H131: =SUM(G131) -> 0 | I131: =SUM(H131) -> 0 | J131: =SUM(I131) -> 0
A132: Подпрограмма 3: Развитие лесного хозяйства на территории Североуральского городского округа
B133: Всего по подпрограмме 1, всего, в том числе | C133: =SUM(C134:C134) -> 1968.1 | D133: =SUM(D134) -> 774.1 | E133: =SUM(E134) -> 191 | F133: 200.6 | G133: 200.6 | H133: 200.6 | I133: 200.6 | J133: 200.6 | K133: Х
B134: местный бюджет | C134: =SUM(D134:J134) -> 1968.1 | D134: =SUM(D146) -> 774.1 | E134: =SUM(E146) -> 191 | F134: 200.6 | G134: 200.6 | H134: 200.6 | I134: 200.6 | J134: 200.6
A135: 1. Капитальные вложения
B136: Всего по направлению «Капитальные вложения», всего, в том числе | C136: 0 | D136: 0 | E136: 0 | F136: 0 | G136: 0 | H136: 0 | I136: 0 | J136: 0 | K136: Х
B137: местный бюджет | C137: 0 | D137: 0 | E137: 0 | F137: 0 | G137: 0 | H137: 0 | I137: 0 | J137: 0
A138: 1.1. Бюджетные инвестиции в объекты капитального строительства
B139: Бюджетные инвестиции в объекты капитального строительства всего, в том числе: | C139: =SUM(C140) -> 0 | D139: =SUM(D140) -> 0 | E139: 0 | F139: 0 | G139: 0 | H139: 0 | I139: 0 | J139: 0 | K139: Х
B140: местный бюджет | C140: 0 | D140: 0 | E140: 0 | F140: 0 | G140: 0 | H140: 0 | I140: 0 | J140: 0
A141: 1.2. Иные капитальные вложения
B142: Всего, в том числе: | C142: =SUM(A144) -> 0 | D142: 0 | E142: 0 | F142: 0 | G142: 0 | H142: 0 | I142: 0 | J142: 0 | K142: Х
B143: местный бюджет | C143: 0 | D143: 0 | E143: 0 | F143: 0 | G143: 0 | H143: 0 | I143: 0 | J143: 0
A144: 3. Прочие нужды
B145: Всего, из них | C145: =SUM(C146:C146) -> 1968.1 | D145: 774.1 | E145: 191 | F145: 200.6 | G145: 200.6 | H145: 200.6 | I145: 200.6 | J145: 200.6 | K145: Х
B146: местный бюджет | C146: =SUM(D146:J146) -> 1968.1 | D146: =SUM(D149) -> 774.1 | E146: =SUM(E149) -> 191 | F146: 200.6 | G146: 200.6 | H146: 200.6 | I146: 200.6 | J146: 200.6
A147: Мероприятие 12 - Развитие лесного хозяйства на территории Североуральского городского округа
B148: Всего, в том числе: | C148: =SUM(D148:J148) -> 1968.1 | D148: =SUM(D149) -> 774.1 | E148: =SUM(E149) -> 191 | F148: 200.6 | G148: 200.6 | H148: 200.6 | I148: 200.6 | J148: 200.6 | K148: 33
B149: местный бюджет | C149: =SUM(D149:J149) -> 1968.1 | D149: =SUM(D152) -> 774.1 | E149: =SUM(E152) -> 191 | F149: 200.6 | G149: 200.6 | H149: 200.6 | I149: 200.6 | J149: 200.6
A150: - Межевание городских лесов, постановка на кадастровый учет
B151: Всего: | C151: =SUM(C152) -> 1968.1 | D151: =SUM(D152) -> 774.1 | E151: =SUM(E152) -> 191 | F151: 200.6 | G151: 200.6 | H151: 200.6 | I151: 200.6 | J151: 200.6 | K151: 33
B152: местный бюджет | C152: =SUM(D152:J152) -> 1968.1 | D152: 774.1 | E152: 191 | F152: 200.6 | G152: =SUM(F152) -> 200.6 | H152: =SUM(G152) -> 200.6 | I152: =SUM(H152) -> 200.6 | J152: =SUM(I152) -> 200.6
A153: Подпрограмма 4 : Переселение граждан на территории Североуральского городского округа из аварийного жилищного фонда с учетом необходимости развития малоэтажного жилищного строительства
B154: Всего по подпрограмме 4, всего, в том числе | C154: =SUM(C155:C157) -> 516122.5 | D154: =SUM(D155:D157) -> 223750 | E154: 184926.5 | F154: 0 | G154: 26861.5 | H154: 26861.5 | I154: 26861.5 | J154: 26861.5 | K154: Х
B155: местный бюджет | C155: =SUM(D155:J155) -> 188296.6 | D155: =SUM(D160) -> 40275 | E155: =SUM(E160) -> 40575.6 | F155: 0 | G155: 26861.5 | H155: 26861.5 | I155: 26861.5 | J155: 26861.5
B156: областной бюджет | C156: =SUM(D156:J156) -> 215223.8 | D156: =SUM(D161) -> 101657 | E156: =SUM(E161) -> 113566.8 | F156: 0 | G156: 0 | H156: 0 | I156: 0 | J156: 0
B157: федеральный бюджет | C157: =SUM(D157:J157) -> 112602.1 | D157: =SUM(D162) -> 81818 | E157: =SUM(E162) -> 30784.1 | F157: 0 | G157: 0 | H157: 0 | I157: 0 | J157: 0
A158: 1. Капитальные вложения
B159: Всего по направлению «Капитальные вложения», всего, в том числе | C159: =SUM(C160:C162) -> 516122.5 | D159: =SUM(D160:D162) -> 223750 | E159: =SUM(E160:E162) -> 184926.5 | F159: 0 | G159: 26861.5 | H159: 26861.5 | I159: 26861.5 | J159: 26861.5 | K159: Х
B160: местный бюджет | C160: =SUM(D160:J160) -> 188296.6 | D160: =SUM(D173) -> 40275 | E160: =SUM(E173) -> 40575.6 | F160: 0 | G160: 26861.5 | H160: 26861.5 | I160: 26861.5 | J160: 26861.5
B161: областной бюджет | C161: =SUM(D161:J161) -> 215223.8 | D161: =SUM(D174) -> 101657 | E161: =SUM(E174) -> 113566.8 | F161: 0 | G161: 0 | H161: 0 | I161: 0 | J161: 0
B162: федеральный бюджет | C162: =SUM(D162:J162) -> 112602.1 | D162: =SUM(D175) -> 81818 | E162: =SUM(E175) -> 30784.1 | F162: 0 | G162: 0 | H162: 0 | I162: 0 | J162: 0
A163: 1.1. Бюджетные инвестиции в объекты капитального строительства
B164: Бюджетные инвестиции в объекты капитального строительства всего, в том числе: | C164: =SUM(C165) -> 0 | D164: =SUM(D165) -> 0 | E164: 0 | F164: 0 | G164: 0 | H164: 0 | I164: 0 | J164: 0 | K164: Х
B165: местный бюджет | C165: 0 | D165: 0 | E165: 0 | F165: 0 | G165: 0 | H165: 0 | I165: 0 | J165: 0
A166: 1.2. Иные капитальные вложения
B167: Всего, в том числе: | C167: =SUM(D167:J167) -> 502562.4 | D167: =SUM(D168:D170) -> 210189.9 | E167: =SUM(E168:E170) -> 184926.5 | F167: 0 | G167: 26861.5 | H167: 26861.5 | I167: 26861.5 | J167: 26861.5 | K167: Х
B168: местный бюджет | C168: =SUM(D168:J168) -> 188296.6 | D168: =SUM(D173) -> 40275 | E168: 40575.6 | F168: 0 | G168: 26861.5 | H168: 26861.5 | I168: 26861.5 | J168: 26861.5
B169: областной бюджет | C169: =SUM(D169:J169) -> 215223.8 | D169: =SUM(D174) -> 101657 | E169: =SUM(E174) -> 113566.8 | F169: 0 | G169: 0 | H169: 0 | I169: 0 | J169: 0
B170: федеральный бюджет | C170: =SUM(D170:J170) -> 99042 | D170: 68257.9 | E170: =SUM(E175) -> 30784.1 | F170: 0 | G170: 0 | H170: 0 | I170: 0 | J170: 0
A171: Мероприятие 13 - Переселение граждан на территории Североуральского городского округа из аварийного жилищного фонда с учетом необходимости развития малоэтажного жилищного строительства
B172: Всего по направлению «Капитальные вложения», всего, в том числе | C172: =SUM(D172:J172) -> 516122.5 | D172: =SUM(D173:D175) -> 223750 | E172: =SUM(E173:E175) -> 184926.5 | F172: 0 | G172: 26861.5 | H172: 26861.5 | I172: 26861.5 | J172: 26861.5 | K172: 37, 39, 40
B173: местный бюджет | C173: =SUM(D173:J173) -> 188296.6 | D173: 40275 | E173: 40575.6 | F173: 0 | G173: 26861.5 | H173: 26861.5 | I173: 26861.5 | J173: 26861.5
B174: областной бюджет | C174: =SUM(D174:J174) -> 215223.8 | D174: 101657 | E174: 113566.8 | F174: 0 | G174: 0 | H174: 0 | I174: 0 | J174: 0
B175: федеральный бюджет | C175: =SUM(D175:J175) -> 112602.1 | D175: 81818 | E175: 30784.1 | F175: 0 | G175: 0 | H175: 0 | I175: 0 | J175: 0
A176: 3 Прочие нужды
B177: Всего, в том числе: | C177: 0 | D177: 0 | E177: 0 | F177: 0 | G177: 0 | H177: 0 | I177: 0 | J177: 0 | K177: Х
B178: местный бюджет | C178: 0 | D178: 0 | E178: 0 | F178: 0 | G178: 0 | H178: 0 | I178: 0 | J178: 0
A179: Подпрограмма 5 : Содержание и капитальный ремонт общего имущества муниципального жилищного фонда на территории Североуральского городского округа
B180: Всего по подпрограмме 5, в том числе | C180: =C181+C182+C183 -> 65441 | D180: 9056.9 | E180: 9021.6 | F180: 9472.5 | G180: 9472.5 | H180: 9472.5 | I180: 9472.5 | J180: 9472.5 | K180: Х
B181: областной бюджет | C181: =SUM(D181:J181) -> 0 | D181: =SUM(D195) -> 0 | E181: =SUM(E195) -> 0 | F181: 0 | G181: 0 | H181: 0 | I181: 0 | J181: 0
B182: федеральный бюджет | C182: =SUM(D182:J182) -> 0 | D182: =SUM(D196) -> 0 | E182: =SUM(E196) -> 0 | F182: 0 | G182: 0 | H182: 0 | I182: 0 | J182: 0
B183: местный бюджет | C183: =SUM(D183:J183) -> 65441 | D183: =SUM(D197) -> 9056.9 | E183: =SUM(E197) -> 9021.6 | F183: 9472.5 | G183: 9472.5 | H183: 9472.5 | I183: 9472.5 | J183: 9472.5
A184: 1. Капитальные вложения
B185: Всего по направлению «Капитальные вложения», всего, в том числе | C185: =SUM(C186) -> 0 | D185: =SUM(D186) -> 0 | E185: 0 | F185: 0 | G185: 0 | H185: 0 | I185: 0 | J185: 0 | K185: Х
B186: местный бюджет | C186: 0 | D186: 0 | E186: 0 | F186: 0 | G186: 0 | H186: 0 | I186: 0 | J186: 0
A187: 1.1. Бюджетные инвестиции в объекты капитального строительства
B188: Бюджетные инвестиции в объекты капитального строительства всего, в том числе: | C188: =SUM(C189) -> 0 | D188: =SUM(D189) -> 0 | E188: 0 | F188: 0 | G188: 0 | H188: 0 | I188: 0 | J188: 0 | K188: Х
B189: местный бюджет | C189: =SUM(D189:J189) -> 0 | D189: 0 | E189: 0 | F189: 0 | G189: 0 | H189: 0 | I189: 0 | J189: 0
A190: 1.2. Иные капитальные вложения
B191: Всего, в том числе: | C191: 0 | D191: =SUM(C189) -> 0 | E191: 0 | F191: 0 | G191: 0 | H191: 0 | I191: 0 | J191: 0 | K191: Х
B192: местный бюджет | C192: =SUM(D192:J192) -> 0 | D192: 0 | E192: 0 | F192: 0 | G192: 0 | H192: 0 | I192: 0 | J192: 0
A193: 3 Прочие нужды
B194: Всего, в том числе: | C194: =SUM(C195:C197) -> 65441 | D194: =SUM(D195:D197) -> 9056.9 | E194: =SUM(E195:E197) -> 9021.6 | F194: 9472.5 | G194: 9472.5 | H194: 9472.5 | I194: 9472.5 | J194: 9472.5 | K194: Х
B195: областной бюджет | C195: =SUM(D195:J195) -> 0 | D195: =SUM(D213) -> 0 | E195: =SUM(E213) -> 0 | F195: 0 | G195: 0 | H195: 0 | I195: 0 | J195: 0
B196: федеральный бюджет | C196: =SUM(D196:J196) -> 0 | D196: =SUM(D214) -> 0 | E196: =SUM(E214) -> 0 | F196: 0 | G196: 0 | H196: 0 | I196: 0 | J196: 0
B197: местный бюджет | C197: =SUM(D197:J197) -> 65441 | D197: =D200+D203+D206+D209+D212 -> 9056.9 | E197: 9021.6 | F197: 9472.5 | G197: 9472.5 | H197: 9472.5 | I197: 9472.5 | J197: 9472.5
A198: Мероприятие 14 - Ремонт общего имущества и квартир, в которых проживают отдельные категории граждан муниципального жилищного фонда в целях приведения в состояние, отвечающее требованиям пожарной безопасности, санитарно-техническим и иным требованиям
B199: Всего, из них | C199: =SUM(C200) -> 7860.5 | D199: =SUM(D200) -> 1162.9 | E199: =SUM(E200) -> 1081.6 | F199: 1123.2 | G199: 1123.2 | H199: 1123.2 | I199: 1123.2 | J199: 1123.2 | K199: 44
B200: местный бюджет | C200: =SUM(D200:J200) -> 7860.5 | D200: 1162.9 | E200: 1081.6 | F200: 1123.2 | G200: =SUM(F200) -> 1123.2 | H200: =SUM(G200) -> 1123.2 | I200: =SUM(H200) -> 1123.2 | J200: =SUM(I200) -> 1123.2
A201: Мероприятие 15 - Возмещение недополученных доходов организациям, предоставляющим населению жилищные услуги по тарифам, не обеспечивающим возмещение издержек, по содержанию лифтового хозяйства
... 102 more rows

Sheet Лист2

Sheet Лист3
